[Event "Frauenbundesliga 2021-22"]
[Site "Germany"]
[Date "2022.05.28"]
[Round "10.20"]
[White "Lubbe, Melanie"]
[Black "Voicu-Jagodzinsky, Carmen"]
[Result "1-0"]
[ECO "B29"]
[WhiteElo "2308"]
[BlackElo "2291"]
[Annotator "TA"]
[PlyCount "261"]
[EventDate "2021.11.26"]
[EventType "team-tourn"]
[EventCountry "GER"]
[SourceTitle "playchess.com"]
[Source "ChessBase"]
[SourceQuality "1"]
[WhiteTeam "Rodewisch"]
[BlackTeam "Hemer"]
[TimeControl "40/5400+30:1800+30"]

{[%evp 57,261,0,0,-118,-102,-113,-124,-254,-145,-174,-139,-329,-326,-281,-64,-239,0,0,123,98,106,0,74,67,241,255,245,230,248,244,230,245,203,220,213,203,391,391,327,313,403,397,291,30,202,202,186,183,189,32,33,35,32,36,34,0,62,62,72,78,85,77,77,0,0,0,70,70,79,79,70,85,81,0,57,58,89,89,89,89,89,90,91,91,107,50,50,57,127,0,0,0,0,0,50,0,5110,127,116,0,154,0,0,0,0,0,0,0,0,0,0,0,0,-29984,0,0,0,0,0,0,0,0,0,0,24,0,0,0,0,0,0,0,0,0,0,0,0,0,7,0,126,0,0,0,108,0,41,0,168,168,168,161,124,0,168,168,168,168,168,167,167,167,167,167,168,168,986,0,0,0,0,0,8,8,8,8,8,0,8,0,0,0,8,8,168,8,8,8,168,168,168,168,168,168,168,168,168,0,168,168,168,168,168,168,29992,29993]} 1. e4 {[%emt 0:00:02]} c5 {[%emt 0:00:07]} 2. Nf3 {[%emt 0:00:05]} Nf6 {[%emt 0:00:04]} 3. Nc3 {[%emt 0:04:03]} d5 {[%emt 0:00:28]} 4. Bb5+ {[%emt 0:11:27]} Bd7 {[%emt 0:00:28]} 5. Bxd7+ {[%emt 0:03:56]} Qxd7 {[%emt 0:00:11]} 6. exd5 {[%emt 0:01:48]} Nxd5 {[%emt 0:00:27]} 7. Nxd5 {[%emt 0:04:35]} Qxd5 {[%emt 0:00:06]} 8. O-O {[%emt 0:00:15]} Nc6 {[%emt 0:00:27]} 9. b3 {[%emt 0:06:43]} O-O-O {[%emt 0:02:54]} 10. Bb2 {[%emt 0:02:35]} f6 {[%emt 0:03:30]} 11. Qe2 {[%emt 0:05:29]} e5 {[%emt 0:02:28]} 12. d3 {[%emt 0:02:59]} h5 {[%emt 0:07:49]} 13. Qe4 {[%emt 0:05:16]} Qd7 {[%emt 0:20:07]} 14. Nh4 {[%emt 0:05:33]} Bd6 {[%emt 0:03:41]} 15. Rad1 {[%emt 0:12:45]} Ne7 {[%emt 0:03:08]} 16. Ng6 {[%emt 0:01:43]} Nxg6 {[%emt 0:01:55]} 17. Qxg6 {[%emt 0:00:03]} h4 {[%emt 0:00:32]} 18. Qe4 {[%emt 0:03:01]} h3 {[%emt 0:04:46]} 19. g3 {[%emt 0:00:05]} Rhe8 {[%emt 0:00:31]} 20. f3 {[%emt 0:03:19]} Kb8 {[%emt 0:05:18]} 21. Rf2 {[%emt 0:01:44]} Bc7 {[%emt 0:01:11]} 22. Re2 {[%emt 0:03:31]} f5 {[%emt 0:05:36]} 23. Qh4 {[%emt 0:00:30]} e4 {[%emt 0:04:38]} 24. fxe4 {[%emt 0:13:41]} fxe4 {[%emt 0:00:05]} 25. Re3 {[%emt 0:01:15]} g5 {[%emt 0:06:58]} 26. Qxg5 {[%emt 0:02:36]} Qc6 {[%emt 0:00:51]} 27. Qf6 {[%emt 0:00:33]} Re6 {[%emt 0:07:51]} 28. Qf1 {[%emt 0:00:02]} exd3 {[%emt 0:01:49]} 29. Rxe6 {[%emt 0:00:59]} (29. Rdxd3 $2 Rxe3 $19) 29... Qxe6 {[%emt 0:00:17]} 30. cxd3 {[%emt 0:01:07]} (30. Rxd3 $11 Re8 31. Rf3) 30... Re8 $17 {[%emt 0:04:10]} 31. Bc3 {[%emt 0:00:54]} c4 $1 {[%emt 0:00:41]} 32. Bd4 {[%emt 0:01:26]} (32. bxc4 $17 Bb6+ 33. c5 Bxc5+ 34. d4) 32... Qg4 {[%emt 0:05:52]} (32... cxb3 33. axb3 Rd8 34. Re1 Qxb3 35. Bc5 $15) (32... c3 $1 $19 33. Rc1 Qd5) 33. Bc5 {[%emt 0:02:11]} (33. dxc4 $2 Rd8 34. a3 (34. Qd3 $2 Bb6 $19) 34... Rxd4 35. Qf8+ Bd8 36. Rxd4 Qxd4+ 37. Kf1 Qd3+ 38. Kf2 a5 $19) 33... c3 {[%emt 0:03:50]} (33... b6 34. Bf2 $17) 34. Rc1 $2 {[%emt 0:00:04]} (34. Re1 $17 {was forced.} Rxe1 35. Qxe1) 34... Be5 $19 {[%emt 0:01:35]} 35. Qf2 {[%emt 0:00:10]} b6 $2 {[%emt 0:01:04]} (35... Ka8 $19 36. Qf1 (36. Bxa7 $2 Bd6 $19) 36... Bd4+ 37. Bxd4 Qxd4+ 38. Kh1 Qd5+ 39. Kg1 Qd4+ 40. Kh1 Qd5+ 41. Kg1 a6) 36. Be3 $2 {[%emt 0:00:17]} (36. Bxb6 $1 $15 axb6 37. Qxb6+ Kc8 38. Qc5+ Bc7 39. Qxc3) 36... Qd7 $2 {[%emt 0:02:27]} (36... Qh5 $1 $19 {And now ...Bg7 would win.} 37. Bxb6 axb6 38. Qxb6+ Kc8 39. Qc5+ Kb8 40. Qb6+ Kc8 41. Qc5+ Kb8 42. Qb6+) 37. d4 $11 {[%emt 0:00:35]} Bc7 {[%emt 0:00:26]} (37... Bd6 $11) 38. Rxc3 {[%emt 0:00:21]} Qd5 {[%emt 0:00:04]} 39. Rc2 {[%emt 0:01:36]} ({White should play} 39. Bd2 $1 $16) 39... Bd6 {[%emt 0:00:02]} (39... Kb7 $1 $11 {keeps the balance.}) 40. Bf4 $16 {[%emt 0:00:34]} Rf8 $2 {[%emt 0:00:48]} (40... Bxf4 $1 $14 41. Qxf4+ Ka8) 41. Bxd6+ $18 {[%emt 0:02:25]} Qxd6 {[%emt 0:00:00]} 42. Qe3 {[%emt 0:00:54]} Qg6 {[%emt 0:01:16]} 43. Rc1 {[%emt 0:07:48]} Re8 {[%emt 0:01:41]} 44. Qf4+ {[%emt 0:00:54]} Ka8 {[%emt 0:00:02]} 45. Qf3+ {[%emt 0:00:48]} Kb8 {[%emt 0:00:05]} 46. d5 {[%emt 0:01:42]} a5 $2 {[%emt 0:01:01]} (46... Qh6 47. Qc3 Kb7) 47. Qf4+ $18 {[%emt 0:01:43]} Ka8 {[%emt 0:00:36]} 48. Qc4 {[%emt 0:06:23]} Ka7 {[%emt 0:04:04]} 49. Qc7+ {[%emt 0:02:42]} Ka6 {[%emt 0:00:41]} 50. Qc6 $2 {[%emt 0:06:21]} ({Only move:} 50. d6 $1 $18 {[%cal Rd6d7] Intending d7 and mate.} Qe6 51. Qc4+ Kb7 52. Qxe6 Rxe6 53. Rc7+ Kb8 54. Rc6) 50... Qg5 $2 {[%emt 0:03:17]} (50... Qe4 $11 {and Black stays safe.} 51. Qc4+ Qxc4 52. Rxc4 (52. bxc4 Re2 $14) 52... Re1+ 53. Kf2 Rh1) 51. Qxe8 $18 {[%emt 0:03:05]} Qxc1+ {[%emt 0:00:02]} 52. Kf2 {[%emt 0:00:01]} Qc5+ {[%emt 0:00:50]} 53. Ke2 $2 {[%emt 0:00:32]} (53. Kf3 $18) 53... Qxd5 {[%emt 0:11:44]} 54. Qc8+ {[%emt 0:00:06]} Ka7 {[%emt 0:03:51]} 55. Qc7+ {[%emt 0:00:26]} Ka8 $1 {[%emt 0:00:11]} 56. Qxb6 {[%emt 0:00:20]} Qe4+ {[%emt 0:00:30]} (56... Qh5+ $1 $11 57. Ke1 Qe5+ 58. Kf1 Qd5) 57. Qe3 $14 {[%emt 0:00:24]} Qc2+ {[%emt 0:00:44]} 58. Qd2 {[%emt 0:00:33]} Qe4+ {[%emt 0:00:02]} 59. Kf2 {[%emt 0:00:38]} Qf5+ {[%emt 0:02:10]} 60. Ke1 {[%emt 0:00:54]} (60. Ke3 $16 {Strongly threatening Qd4.} Qg5+ 61. Kd3 Qd5+ 62. Kc3 Qc6+ 63. Kd3 Qg6+ 64. Kc4) 60... Qb1+ $11 {[%emt 0:00:39]} 61. Kf2 {[%emt 0:00:30]} (61. Qd1 $11 Qxa2 62. Qd2 Qb1+ 63. Qd1 Qe4+ 64. Kd2) 61... Qf5+ $14 {[%emt 0:00:03]} 62. Ke3 {[%emt 0:00:20]} Qg5+ {[%emt 0:00:50]} 63. Kd3 {[%emt 0:00:11]} Qd5+ {[%emt 0:01:57]} 64. Kc3 {[%emt 0:00:15]} Qc6+ {[%emt 0:00:37]} 65. Kd3 {[%emt 0:01:33]} Qd5+ $1 {[%emt 0:00:27]} 66. Kc2 $1 {[%emt 0:00:11]} Qe4+ {[%emt 0:00:11]} 67. Kc1 {[%emt 0:00:49]} Qh1+ {[%emt 0:00:33]} 68. Kb2 $1 {[%emt 0:00:02]} Qg2 {[%emt 0:00:05]} 69. Qc2 $1 {[%emt 0:00:26]} Ka7 {[%emt 0:00:39]} 70. a3 {[%emt 0:01:05]} Kb6 {[%emt 0:01:06]} 71. Kc3 {[%emt 0:01:19]} (71. a4 $1 $16) 71... Qc6+ $14 {[%emt 0:00:26]} 72. Kd2 {[%emt 0:00:38]} Qd6+ {[%emt 0:01:40]} (72... Qg2+ $1 $14 73. Kd3 Kb7) 73. Qd3 {[%emt 0:00:33]} (73. Ke2 $16) 73... Qxa3 $11 {[%emt 0:00:05]} 74. Ke3 {[%emt 0:00:26]} Qc1+ {[%emt 0:00:18]} 75. Qd2 {[%emt 0:00:21]} Qg1+ {[%emt 0:00:19]} (75... Qb1 $1 $11) 76. Qf2 {[%emt 0:00:27]} ({White should try} 76. Kf3 $1 $14 Qh1+ 77. Kg4) 76... Qc1+ $2 {[%emt 0:00:40][%mdl 8192]} (76... Qd1 $11) 77. Kf3+ $2 {[%emt 0:00:05]} (77. Kd3+ $1 $18 {is the precise move to win.} Kc6 78. Qf6+ Kb7 79. Qf7+ Kb6 80. Qe6+ Kb7 81. Qe4+ Kb8 82. Qf4+ Qxf4 83. gxf4) 77... Kb5 $16 {[%emt 0:00:44]} 78. Kg4 {[%emt 0:00:22]} (78. g4 $1 $16) 78... Qh6 $2 {[%emt 0:03:14]} (78... Qc3 $1 $11) 79. Qf4 $2 {[%emt 0:00:42]} ({Better is} 79. Qe2+ $16 Kb6 80. Qf2+ Ka6 81. Qe2+ Kb6 82. Qe8) 79... Qg6+ $1 $11 {[%emt 0:00:35]} 80. Kxh3 {[%emt 0:00:53]} Qe6+ {[%emt 0:00:12]} 81. Kh4 {[%emt 0:00:30]} Qxb3 {[%emt 0:01:27]} 82. Qb8+ {[%emt 0:00:12]} Kc4 {[%emt 0:00:08]} 83. Qc7+ {[%emt 0:00:40]} Kb5 {[%emt 0:00:37]} 84. Qb7+ {[%emt 0:00:13]} Ka4 {[%emt 0:01:03]} 85. Qxb3+ {[%emt 0:00:55]} Kxb3 {[%emt 0:00:01]} 86. g4 {[%emt 0:00:05]} a4 {[%emt 0:00:02]} 87. g5 {[%emt 0:00:08]} a3 {[%emt 0:00:01]} 88. g6 {[%emt 0:00:14]} a2 {[%emt 0:00:03]} 89. g7 {[%emt 0:00:07]} a1=Q {[%emt 0:04:19]} 90. g8=Q+ {[%emt 0:00:07]} Kc2 {[%emt 0:00:00]} 91. Qc4+ {[%emt 0:00:49]} (91. Qg2+ Kd3 $16) 91... Kd2 {[%emt 0:00:00]} 92. Qf4+ {[%emt 0:00:53]} Kd3 {[%emt 0:00:00]} 93. Kg4 {[%emt 0:00:26]} Qg7+ {[%emt 0:00:00]} 94. Kf3 {[%emt 0:00:25]} Qb7+ {[%emt 0:00:00]} 95. Kg3 {[%emt 0:00:36]} Qg7+ $1 {[%emt 0:00:16]} 96. Qg4 {[%emt 0:00:46]} Qe5+ {[%emt 0:00:11]} 97. Kh3 {[%emt 0:00:25]} Kc2 {[%emt 0:01:45]} 98. Kg2 {[%emt 0:00:36]} Qd5+ {[%emt 0:00:41]} (98... Kd3 $1 $11) 99. Kf2 {[%emt 0:00:07]} (99. Qf3 $16 Qd4 100. h3) 99... Qc5+ {[%emt 0:00:22]} 100. Kf1 {[%emt 0:00:12]} Qf8+ {[%emt 0:00:49]} (100... Kd3 $11 {remains equal.}) 101. Ke1 {[%emt 0:01:15]} (101. Kg2 $16 {White threatens Qe2+ and mate.} Qa8+ 102. Qf3 Qg8+ 103. Kf2) 101... Kb3 {[%emt 0:01:06]} 102. h4 {[%emt 0:00:31]} Qe7+ $2 {[%emt 0:00:29]} (102... Kc3 $1 $11) 103. Kf2 $18 {[%emt 0:00:08]} Qc5+ {[%emt 0:00:25]} 104. Kf3 {[%emt 0:00:30]} Qc3+ {[%emt 0:00:32]} 105. Kf2 {[%emt 0:00:26]} Qc5+ {[%emt 0:00:15]} 106. Kg2 {[%emt 0:00:25]} Qc2+ {[%emt 0:00:30]} 107. Kh3 {[%emt 0:00:10]} Qc1 {[%emt 0:00:58]} 108. Qf3+ {[%emt 0:00:43]} Kb4 {[%emt 0:00:33]} 109. h5 $1 {[%emt 0:00:16]} Kc5 {[%emt 0:00:23]} 110. Kg4 {[%emt 0:01:34]} Qg1+ {[%emt 0:00:34]} 111. Kf5 {[%emt 0:00:14]} Kd6 $2 {[%emt 0:00:34] [#]} (111... Qb1+ 112. Qe4 Qf1+ 113. Kg6 Qg1+ 114. Kf7 Qf1+ 115. Ke7 Qg1 116. Qe5+ Kb4 117. Qf4+ Kb3) 112. Kf6 $2 {[%emt 0:01:00]} (112. h6 $1 $18 {[%cal Rh6h7]}) 112... Qa1+ $11 {[%emt 0:00:23]} 113. Kg6 {[%emt 0:00:23]} Qb1+ {[%emt 0:00:10]} 114. Kg7 {[%emt 0:00:36]} Qg1+ {[%emt 0:00:11]} 115. Kf7 {[%emt 0:00:42]} Qa7+ $1 {[%emt 0:00:07]} 116. Kg8 {[%emt 0:00:40]} Qg1+ {[%emt 0:00:11]} 117. Kf8 {[%emt 0:00:11]} Qg5 {[%emt 0:00:48]} 118. Qd3+ {[%emt 0:01:01]} Ke5 {[%emt 0:01:12]} 119. Qg6 {[%emt 0:00:36]} Qd8+ {[%emt 0:00:32]} 120. Kg7 {[%emt 0:00:07]} Qd7+ {[%emt 0:00:43] [#]} 121. Kh8 $2 {[%emt 0:00:20]} ({White must play} 121. Qf7 $1 $18 {[%cal Rf7d7]} Qg4+ 122. Kh7) 121... Qd8+ $11 {[%emt 0:00:39]} 122. Kh7 {[%emt 0:00:07]} Kd4 $2 {[%emt 0:00:34]} (122... Kf4 $11 {and Black has nothing to worry.}) 123. h6 {[%emt 0:00:45]} Kc5 {[%emt 0:00:31]} 124. Qf5+ {[%emt 0:01:04]} Kb4 {[%emt 0:00:30]} 125. Kg7 {[%emt 0:01:15]} Qd4+ {[%emt 0:00:09]} 126. Kg8 {[%emt 0:00:00]} Qc4+ {[%emt 0:00:16]} 127. Kg7 $2 {[%emt 0:00:21]} (127. Kf8 $18 {Black must now prevent h7.} Ka3 128. h7 Qb4+ 129. Kg7 Qc3+ 130. Qf6 Qg3+ 131. Kf7 Qb3+ 132. Kg7 Qb7+ 133. Qf7 Qg2+ 134. Qg6 Qb7+ 135. Kh8 (135. Qf7 Qg2+ 136. Kf8 Qa8+ 137. Ke7 Qb7+ 138. Kf6 Qf3+ 139. Kg7 Qg3+ 140. Qg6 Qc7+ 141. Kh6 Qf4+ 142. Qg5 Qf8+ 143. Kg6 Qe8+ 144. Kf6 Qd8+ 145. Kf5 Qd3+ 146. Kg4 Qe4+ 147. Kg3 Qxh7 $11) 135... Qc8+ 136. Qg8 (136. Kg7 Qb7+ 137. Kh6 Qh1+ 138. Kg5 Qg2+ 139. Kf6 Qc6+ 140. Kg7 Qb7+ $11) 136... Qc3+ 137. Qg7 Qc8+ 138. Qg8 Qc3+ 139. Qg7 Qc8+ 140. Qg8) 127... Qc3+ $2 {[%emt 0:00:14]} (127... Qd4+ $11 128. Kf7 Qa7+ 129. Kg6 Qg1+ 130. Kf7 Qa7+ 131. Kg8 Qa2+ 132. Kg7 Qa7+ 133. Kg8 Qa2+ 134. Kg7 Qa7+ 135. Kg8) 128. Qf6 {[%emt 0:00:07]} Qg3+ {[%emt 0:00:10]} 129. Kf8 {[%emt 0:00:21]} Qb8+ {[%emt 0:00:13]} 130. Kf7 {[%emt 0:00:06]} Ka3 $2 {[%emt 0:01:31]} (130... Kb3 $18 131. Qe6+ Kb2) 131. Qa1+ {[%emt 0:00:11]} ({Stronger than} 131. h7 Qb3+ 132. Qe6 Qf3+ 133. Qf6 (133. Kg7 Qg3+ 134. Kh6 Qh4+ 135. Kg7 Qg3+ 136. Qg6 Qc3+ 137. Kh6 Qe3+ 138. Qg5 Qh3+ 139. Kg7 Qd7+ 140. Kh8 Qe8+ 141. Kg7 Qd7+ 142. Kh6 Qh3+ 143. Qh5 Qe3+ 144. Kg6 Qe8+ 145. Kh6 Qe3+ 146. Kg7 Qd4+ 147. Kf7 Qd7+ 148. Kg6 Qe8+ 149. Kh6 Qe3+ $11) 133... Qb3+ 134. Qe6 Qf3+ 135. Kg8 (135. Kg7 Qg3+ 136. Kf8 Qf4+ 137. Qf7 Qb8+ 138. Kg7 Qg3+ 139. Kh6 Qe3+ 140. Kg6 Qg3+ 141. Kf6 Qc3+ 142. Kg5 Qg3+ 143. Kh6 Qh3+ 144. Qh5 Qe3+ 145. Qg5 Qh3+ 146. Qh5 Qe3+ 147. Qg5 Qh3+ 148. Qh5 $11) 135... Qg3+ 136. Kf7 Qf4+ 137. Qf6 Qc4+ 138. Kg7 Qg4+ 139. Qg6 Qd4+ 140. Qf6 Qg4+ 141. Kh6 (141. Qg6 Qd4+ 142. Qf6 Qg4+ $11) 141... Qh3+ 142. Kg5 Qxh7 $11) 1-0

[Event "Frauenbundesliga 2021-22"]
[Site "Germany"]
[Date "2022.05.28"]
[Round "10.21"]
[White "Schulze, Lara"]
[Black "Movsesian, Julia"]
[Result "1/2-1/2"]
[ECO "C45"]
[WhiteElo "2303"]
[BlackElo "2313"]
[Annotator "TA"]
[PlyCount "77"]
[EventDate "2021.11.26"]
[EventType "team-tourn"]
[EventCountry "GER"]
[SourceTitle "playchess.com"]
[Source "ChessBase"]
[SourceQuality "1"]
[WhiteTeam "Hemer"]
[BlackTeam "Rodewisch"]
[TimeControl "40/5400+30:1800+30"]

{[%evp 12,77,0,-2,16,12,15,7,18,17,9,16,16,0,0,0,0,0,0,0,0,0,-8,-26,-18,-36,-42,-47,-45,-53,-46,-50,-64,-61,-27,-34,-36,-79,-16,-31,0,0,0,0,0,0,0,0,0,0,0,0,0,0,0,0,0,0,0,0,0,0,0,0,0,0,0,0]} 1. e4 {[%emt 0:00:03]} e5 {[%emt 0:00:04]} 2. Nf3 {[%emt 0:00:06]} Nc6 {[%emt 0:00:05]} 3. d4 {[%emt 0:00:11]} exd4 {[%emt 0:00:43]} 4. Nxd4 {[%emt 0:00:07]} Bc5 {[%emt 0:02:40]} 5. Be3 {[%emt 0:00:21]} Qf6 {[%emt 0:00:22]} 6. c3 {[%emt 0:00:29]} Nge7 {[%emt 0:00:37]} 7. Bb5 {[%emt 0:00:58]} Bb6 {[%emt 0:02:45] C45: Scotch Game.} 8. O-O {[%emt 0:01:11]} O-O {[%emt 0:05:27]} 9. Re1 {[%emt 0:01:20]} d5 {[%emt 0:09:21]} 10. Nxc6 {[%emt 0:00:35]} bxc6 {[%emt 0:00:27]} 11. Bf1 {[%emt 0:00:08] [#]} Rb8 $146 {[%emt 0:03:52]} ({Predecessor:} 11... dxe4 12. Nd2 Bf5 13. Nxe4 Bxe4 14. Bxb6 cxb6 15. Rxe4 Rfd8 16. Qe2 Ng6 17. g3 Rd6 {½-½ (44) Schulze,L (2269)-Klek,H (2265) Magdeburg 2021}) 12. Nd2 {[%emt 0:16:41]} Bxe3 {[%emt 0:10:11]} 13. Rxe3 {[%emt 0:00:47]} Rxb2 {[%emt 0:00:51][%cal Oc8g4]} 14. Qc1 {[%emt 0:03:48]} Rb8 {[%emt 0:07:59]} 15. Qa3 {[%emt 0:02:26]} a6 {[%emt 0:12:44]} 16. e5 {[%emt 0:10:10]} Qe6 $36 {[%emt 0:00:32][%mdl 2048] Black is pushing.} 17. Bd3 {[%emt 0:01:41]} Nf5 {[%emt 0:06:40]} 18. Bxf5 {[%emt 0:05:02]} Qxf5 {[%emt 0:00:06]} 19. Nb3 {[%emt 0:02:02][%cal Bd2b3,Bb3c5,Bc5d3,Bd3f4][%mdl 32]} Re8 {[%emt 0:00:48]} 20. Rae1 {[%emt 0:01:36]} Rb6 {[%emt 0:02:20]} 21. h3 {[%emt 0:05:12]} Qg5 {[%emt 0:01:28]} 22. Qc5 {[%emt 0:14:00]} h5 {[%emt 0:06:03]} 23. Qd4 {[%emt 0:03:01]} Qe7 {[%emt 0:06:20]} 24. Nc5 {[%emt 0:09:12][%cal Oe5e6]} Rb5 {[%emt 0:02:58]} (24... Be6 $17) 25. Nd3 {[%emt 0:01:25]} (25. e6 {seems wilder.} Bxe6 26. Rg3 Qf8 27. Nxa6 Bd7 28. Rxe8 Bxe8 29. Qe5) 25... Bf5 {[%emt 0:07:15]} 26. Nf4 {[%emt 0:02:27] The position is equal.} Qc5 {[%emt 0:03:52]} 27. Qd2 {[%emt 0:07:17]} h4 {[%emt 0:04:13]} 28. e6 {[%emt 0:05:09]} (28. Qe2 {is more complex.} Qc4 29. Qf3 Be6 30. Nxe6 fxe6 31. Qh5) 28... Bxe6 {[%emt 0:00:36]} 29. Nxe6 {[%emt 0:00:53]} fxe6 {[%emt 0:00:41]} 30. Rxe6 {[%emt 0:00:17]} Rxe6 {[%emt 0:00:24]} 31. Rxe6 $11 {[%emt 0:00:06][%mdl 4096] Endgame KQR-KQR} Rb1+ {[%emt 0:00:06]} 32. Kh2 {[%emt 0:00:37]} Rb8 {[%emt 0:00:30]} 33. Qe2 {[%emt 0:02:37]} Qxc3 {[%emt 0:02:21]} 34. Re8+ {[%emt 0:02:31]} Rxe8 {[%emt 0:00:04]} 35. Qxe8+ {[%emt 0:00:05]} Kh7 {[%emt 0:00:03] [#] White must now prevent ...Kh6.} 36. Qh5+ {[%emt 0:00:12]} Kg8 {[%emt 0:00:00]} 37. Qe8+ {[%emt 0:00:45]} Kh7 {[%emt 0:00:01] Threatens to win with ...Kh6.} 38. Qh5+ {[%emt 0:00:18]} Kg8 {[%emt 0:00:00] Hoping for ...Qe1.} 39. Qe8+ {[%emt 0:00:15] Weighted Error Value: White=0.05 (flawless) /Black=0.09 (flawless)} 1/2-1/2

[Event "Frauenbundesliga 2021-22"]
[Site "Germany"]
[Date "2022.05.28"]
[Round "10.22"]
[White "Theissl Pokorna, Regina"]
[Black "Ciolacu, Alessia-Mihaela"]
[Result "1/2-1/2"]
[ECO "C54"]
[WhiteElo "2302"]
[BlackElo "2198"]
[Annotator "TA"]
[PlyCount "76"]
[EventDate "2021.11.26"]
[EventType "team-tourn"]
[EventCountry "GER"]
[SourceTitle "playchess.com"]
[Source "ChessBase"]
[SourceQuality "1"]
[WhiteTeam "Rodewisch"]
[BlackTeam "Hemer"]
[TimeControl "40/5400+30:1800+30"]

{[%evp 22,76,15,4,9,0,17,1,56,40,54,0,22,-26,-26,-16,0,-25,-14,-28,-34,-34,-39,-42,-3,-18,-14,-32,-34,-23,-24,-96,-18,-29,0,-21,12,0,39,0,20,0,12,0,0,0,150,152,139,72,66,0,20,16,20,12,21]} 1. e4 {[%emt 0:00:06]} e5 {[%emt 0:00:00]} 2. Nf3 {[%emt 0:00:07]} Nc6 {[%emt 0:00:00]} 3. Bc4 {[%emt 0:00:10]} Nf6 {[%emt 0:00:00]} 4. d3 {[%emt 0:00:08]} Bc5 {[%emt 0:00:23]} 5. c3 {[%emt 0:00:15]} a6 {[%emt 0:00:30]} 6. Bb3 {[%emt 0:00:41]} d6 {[%emt 0:00:48]} 7. Nbd2 {[%emt 0:00:28]} O-O {[%emt 0:01:00]} 8. O-O {[%emt 0:00:33]} h6 {[%emt 0:04:04]} 9. h3 {[%emt 0:01:53]} Re8 {[%emt 0:00:11]} 10. Re1 {[%emt 0:01:25]} Be6 {[%emt 0:00:17]} 11. Nf1 $1 {[%emt 0:12:33] 11.Nf1 scores better than 11.Bc2.} Ba7 {[%emt 0:01:38]} 12. Ng3 {[%emt 0:04:54]} d5 {[%emt 0:02:29] C54: Giuoco Piano: 4 c3 Nf6, main lines with 5 d4 and 5 d3.} 13. Qe2 {[%emt 0:02:12]} b5 {[%emt 0:13:11]} 14. Bd2 {[%emt 0:12:24]} (14. exd5 {keeps more tension.} Bxd5 15. Nh4 a5 16. Bxd5 Qxd5 17. Nhf5) 14... d4 {[%emt 0:12:39] [#]} (14... Rb8 $11) 15. Rad1 $146 {[%emt 0:03:16]} ({Predecessor:} 15. Red1 Qd7 16. Bxe6 fxe6 17. Rac1 Rab8 18. b4 dxc3 19. Bxc3 Bd4 20. a3 Re7 21. Rc2 Bxc3 22. Rxc3 {1-0 (62) Andriasian,Z (2523)-Safarli,E (2463) Kirishi 2007}) 15... Bb6 {[%emt 0:03:56]} 16. Kh2 {[%emt 0:15:31]} (16. Bxe6 $14 Rxe6 17. Nf5) 16... Qd7 {[%emt 0:01:11]} 17. Nh4 {[%emt 0:01:21]} (17. Bxe6 $142 Qxe6 18. cxd4 Bxd4 19. b3) 17... Rad8 $11 {[%emt 0:02:05] And now ...Bxb3 would win.} 18. Bc2 {[%emt 0:04:50]} Ne7 {[%emt 0:08:20]} 19. a3 {[%emt 0:11:02]} c5 {[%emt 0:01:11]} 20. cxd4 {[%emt 0:04:00]} (20. Kg1 {is interesting.} Kh7 21. Qf3 Ba5 22. b4) 20... Qxd4 {[%emt 0:07:32]} 21. Bc3 {[%emt 0:01:28]} Qd6 {[%emt 0:00:11]} 22. Qf3 {[%emt 0:00:14]} Nh7 {[%emt 0:07:03]} (22... Qc7 {seems wilder.} 23. Bd2 Kh7 24. Nhf5 Nfg8) 23. Nhf5 {[%emt 0:01:40]} Nxf5 {[%emt 0:14:52]} 24. exf5 {[%emt 0:00:14]} Bd5 {[%emt 0:00:05]} 25. Ne4 {[%emt 0:01:36]} Qc6 {[%emt 0:01:23]} 26. Qg3 {[%emt 0:04:15] [#]} (26. Qe2 $11) 26... Bc7 {[%emt 0:03:03]} (26... b4 $1 $17 {[%cal Rb4c3]} 27. Bd2 (27. axb4 cxb4 28. Bd2 Bxe4 $17) (27. Bxe5 $2 Rxe5 28. Ba4 Qc7 $19) 27... b3) 27. Bd2 {[%emt 0:02:02]} Kh8 {[%emt 0:04:16]} 28. Qh4 {[%emt 0:03:03]} f6 {[%emt 0:00:42]} 29. Be3 {[%emt 0:04:06]} Bb6 {[%emt 0:01:08]} 30. Qg4 {[%emt 0:01:30]} Re7 {[%emt 0:00:36][%cal Be8e7,Be7d7,Bd7d4][%mdl 32]} 31. Bb1 {[%emt 0:01:10]} Red7 {[%emt 0:02:17]} 32. Nxc5 {[%emt 0:01:13]} Bxc5 {[%emt 0:03:19]} 33. Rc1 {[%emt 0:00:04]} Bc4 {[%emt 0:00:43]} 34. dxc4 $16 {[%emt 0:02:11]} Bxe3 {[%emt 0:00:09]} 35. Rxe3 {[%emt 0:02:11]} (35. fxe3 $142 {Strongly threatening Be4.} bxc4 36. Rxc4 (36. Qxc4 Qb7 $16)) 35... Rd4 {[%emt 0:01:24]} 36. Re4 {[%emt 0:02:46]} (36. Qf3 $14 Qc7 37. Rec3 bxc4 38. Ba2) 36... bxc4 $1 $11 {[%emt 0:00:20] The position is equal.} 37. Qe2 {[%emt 0:00:24] Rxd4 is the strong threat.} Rc8 {[%emt 0:02:18]} 38. Re3 {[%emt 0:01:34]} Ng5 {[%emt 0:00:58] Weighted Error Value: White=0.23 (precise) /Black=0.23 (precise)} 1/2-1/2